Workbook

Sheet Calcul agrandissement - Proprio
A1: Financement de l'agrandissement d'une installation - propriétaire
A2: Pour le PFI, le CPE locataire détenant un contrat d'emphytéose est considéré comme propriétaire.
A3: Insérer votre nombre de places totales, votre nombre de places poupons ainsi que votre région et le calcul se fera automatiquement.
A4: Exemple fait pour un CPE de 16 places, qui ajoute 26 places et qui constitue au moins un groupe complet dont 10 poupons, situé dans le Bas-Saint-Laurent
A6: Nombre de places totales (AVANT l'ajout des nouvelles places) | B6: 80
A7: Nombre de places ajoutées | B7: 20
A8: Nombre de places totales (APRÈS l'ajout des nouvelles places) | B8: =B6+B7 -> 100
A9: Nombre de NOUVELLES places 17 mois ou moins (poupons) | B9: 5
A10: Durée du bail emphytéotique, si applicable (en années) | B10: 0
A11: Région | B11: Montérégie
A12: L'agrandissement permet-il l'ajout d'un groupe complet? | B12: Oui
A13: Nombre de poupons dans un nouveau groupe poupon COMPLET no 1 | B13: 5
A14: Nombre de poupons dans un nouveau groupe poupon COMPLET no 2
A15: Nombre de poupons dans un nouveau groupe poupon COMPLET no 3
A16: Nombre de poupons dans un nouveau groupe poupon COMPLET no 4
A17: Nombre d'enfants dans un nouveau groupe COMPLET constitué no 1 | B17: 8
A18: Nombre d'enfants dans un nouveau groupe COMPLET constitué no 2
A19: Nombre d'enfants dans un nouveau groupe COMPLET constitué no 3
A20: Nombre d'enfants dans un nouveau groupe COMPLET constitué no 4
A21: Nombre d'enfants dans un nouveau groupe COMPLET constitué no 5
A22: Nombre d'enfants dans un nouveau groupe COMPLET constitué no 6
A23: Nombre d'enfants dans un nouveau groupe COMPLET constitué no 7
A25: Montant de base (APRÈS l'ajout de nouvelles places) | B25: =VLOOKUP('Calcul agrandissement - Proprio'!B8,'Annexe II'!A4:B103,2,FALSE) -> 2519708
A26: Montant de base (AVANT l'ajout de nouvelles places) | B26: =VLOOKUP('Calcul agrandissement - Proprio'!B6,'Annexe II'!A4:B103,2,FALSE) -> 2078652
A27: Montant poupon | B27: =B9*8219 -> 41095
A28: Montant d'ajustement petite installation | B28: =IF(B8<19,((19-B6)*22055),IF(B6<19,(B7*22055),0)) -> 0
A29: Sous-total avant indice régional de modulation | B29: =B28+(B25-B26)+B27 -> 482151
A30: Indice régional de modulation | B30: =VLOOKUP(B11,'Annexe IV'!A4:B27,2,FALSE) -> 1
A31: Sous-total incluant indice régional de modulation | B31: =B29*B30 -> 482151
A33: Enveloppe maximale achat construction | B33: =_xlfn.IFS(B10=0,B31,B10<=20,B31*0.2,B10>20,B31) -> 482151
A35: Enveloppe aménagement extérieur | B35: =B33*0.07 -> 33750.57
A37: Enveloppe honoraires professionnels | B37: =_xlfn.IFS((B33+B35)<300000,(B33+B35)*0.09,(B33+B35)<600000,27000+(((B33+B35)-300000)*0.072),(B33+B35)<1250000,48600+(((B33+B35)-600000)*0.063),(B33+B35)>1250000,89550+(((B33+B35)-1250000)*0.0576)) -> 42544.91304
A39: Enveloppe chargé projet | B39: =_xlfn.IFS((B33+B35)<750000,(B33+B35)*0.03,(B33+B35)<1500000,22500+(((B33+B35)-750000)*0.02),(B33+B35)>1500000,37500+(((B33+B35)-1500000)*0.015)) -> 15477.0471
A41: Calcul mobilier | B41: =27588+(((B13+B14+B15+B16+B17+B18+B19+B20+B21+B22+B23)*918)+((B13+B14+B15+B16)*918)) -> 44112
A42: Enveloppe mobilier-équipement | B42: =IF(AND(B8>41,B12="Oui"),B41,0) -> 44112
A44: Enveloppe jeux extérieurs | B44: =IF(B12="Oui",((B17+B18+B19+B20+B21+B22+B23++B13+B14+B15+B16)*735),0) -> 9555
A46: Enveloppe intégration des Arts à l'architecture | B46: Si projet égal ou supérieur à 150 000$
A48: Enveloppe achat de terrain | B48: Une enveloppe peut couvrir l'achat d'un terrain adjacent à l'installation si cette acquisition est nécessaire et autorisée par le Ministre
A50: Enveloppe spécifique exceptionnelle | B50: Exigences peu communes émanant d'autorités compétentes, telle une municipalité
A52: Enveloppe totale préliminaire | B52: =B33+B35+B42+B44+B37 -> 612113.483

Sheet Superficie (hidden)
A1: Estimation superficie
A2: Nombre de places en installation (0-59 mois) | B2: Superficie pieds2 | C2: Superficies Salle Multi pieds2 | D2: Superficie pieds2 0-18 mois
A3: 0 | B3: 0 | C3: 0 | D3: 0
A4: 1 | B4: 2099.961934 | C4: 299.8837279 | D4: =25.84*A4 -> 25.84
A5: 2 | B5: 2099.961934 | C5: 299.8837279 | D5: =25.84*A5 -> 51.68
A6: 3 | B6: 2099.961934 | C6: 299.8837279 | D6: 77.52
A7: 4 | B7: 2099.961934 | C7: 299.8837279 | D7: 103.36
A8: 5 | B8: 2099.961934 | C8: 299.8837279 | D8: 129.2
A9: 6 | B9: 2099.961934 | C9: 299.8837279 | D9: 155.04
A10: 7 | B10: 2099.961934 | C10: 299.8837279 | D10: 180.88
A11: 8 | B11: 2099.961934 | C11: 299.8837279 | D11: 206.72
A12: 9 | B12: 2099.961934 | C12: 299.8837279 | D12: 232.56
A13: 10 | B13: 2099.961934 | C13: 299.8837279 | D13: 258.4
A14: 11 | B14: 2099.961934 | C14: 299.8837279 | D14: 284.24
A15: 12 | B15: 2099.961934 | C15: 299.8837279 | D15: 310.08
A16: 13 | B16: 2099.961934 | C16: 299.8837279 | D16: 335.92
A17: 14 | B17: 2099.961934 | C17: 299.8837279 | D17: 361.76
A18: 15 | B18: 2099.961934 | C18: 299.8837279 | D18: 387.6
A19: 16 | B19: 2099.961934 | C19: 299.8837279 | D19: 413.44
A20: 17 | B20: 2099.961934 | C20: 299.8837279 | D20: 439.28
A21: 18 | B21: 2099.961934 | C21: 299.8837279 | D21: 465.12
A22: 19 | B22: 2099.961934 | C22: 299.8837279 | D22: 490.96
A23: 20 | B23: 2169.299581 | C23: 399.8255949 | D23: 516.8
A24: 21 | B24: 2238.637229 | C24: 399.8255949 | D24: 542.64
A25: 22 | B25: 2307.974876 | C25: 399.8255949 | D25: 568.48
A26: 23 | B26: 2377.303007 | C26: 399.8255949 | D26: 594.32
A27: 24 | B27: 2446.640655 | C27: 399.8255949 | D27: 620.16
A28: 25 | B28: 2515.978302 | C28: 399.8255949 | D28: 646
A29: 26 | B29: 2585.31595 | C29: 399.8255949 | D29: 671.84
A30: 27 | B30: 2654.644081 | C30: 399.8255949 | D30: 697.68
A31: 28 | B31: 2723.981728 | C31: 399.8255949 | D31: 723.52
A32: 29 | B32: 2793.319376 | C32: 399.8255949 | D32: 749.36
A33: 30 | B33: 2862.657023 | C33: 399.8255949 | D33: 775.2
A34: 31 | B34: 2931.985154 | C34: 399.8255949 | D34: 801.04
A35: 32 | B35: 3001.322802 | C35: 399.8255949 | D35: 826.88
A36: 33 | B36: 3070.660449 | C36: 399.8255949 | D36: 852.72
A37: 34 | B37: 3139.998097 | C37: 399.8255949 | D37: 878.56
A38: 35 | B38: 3209.326228 | C38: 399.8255949 | D38: 904.4
A39: 36 | B39: 3278.663875 | C39: 399.8255949 | D39: 930.24
A40: 37 | B40: 3348.001523 | C40: 399.8255949 | D40: 956.08
A41: 38 | B41: 3417.33917 | C41: 399.8255949 | D41: 981.92
A42: 39 | B42: 3486.667301 | C42: 399.8255949 | D42: 1007.76
A43: 40 | B43: 3624.657404 | C43: 499.8008311 | D43: 1033.6
A44: 41 | B44: 3693.985535 | C44: 499.8008311 | D44: 1059.44
A45: 42 | B45: 3763.323182 | C45: 499.8008311 | D45: 1085.28
A46: 43 | B46: 3832.66083 | C46: 499.8008311 | D46: 1111.12
A47: 44 | B47: 3901.998477 | C47: 499.8008311 | D47: 1136.96
A48: 45 | B48: 3971.326608 | C48: 499.8008311 | D48: 1162.8
A49: 46 | B49: 4040.664256 | C49: 499.8008311 | D49: 1188.64
A50: 47 | B50: 4110.001903 | C50: 499.8008311 | D50: 1214.48
A51: 48 | B51: 4179.339551 | C51: 499.8008311 | D51: 1240.32
A52: 49 | B52: 4248.667682 | C52: 499.8008311 | D52: 1266.16
A53: 50 | B53: 4318.005329 | C53: 499.8008311 | D53: 1292
A54: 51 | B54: 4387.342977 | C54: 499.8008311 | D54: 1317.84
A55: 52 | B55: 4456.680624 | C55: 499.8008311 | D55: 1343.68
A56: 53 | B56: 4526.008755 | C56: 499.8008311 | D56: 1369.52
A57: 54 | B57: 4595.346403 | C57: 499.8008311 | D57: 1395.36
A58: 55 | B58: 4733.326989 | C58: 499.8008311 | D58: 1421.2
A59: 56 | B59: 4802.664636 | C59: 499.8008311 | D59: 1447.04
A60: 57 | B60: 4872.002284 | C60: 499.8008311 | D60: 1472.88
A61: 58 | B61: 4941.339931 | C61: 499.8008311 | D61: 1498.72
A62: 59 | B62: 5010.668062 | C62: 499.8008311 | D62: 1524.56
A63: 60 | B63: 5080.00571 | C63: 515.7965244 | D63: 1550.4
A64: 61 | B64: 5149.343357 | C64: 515.7965244 | D64: 1576.24
A65: 62 | B65: 5218.681005 | C65: 515.7965244 | D65: 1602.08
A66: 63 | B66: 5288.009136 | C66: 515.7965244 | D66: 1627.92
A67: 64 | B67: 5357.346783 | C67: 515.7965244 | D67: 1653.76
A68: 65 | B68: 5426.684431 | C68: 558.7825283 | D68: 1679.6
A69: 66 | B69: 5496.022078 | C69: 558.7825283 | D69: =25.84*A69 -> 1705.44
A70: 67 | B70: 5565.350209 | C70: 558.7825283 | D70: 1731.28
A71: 68 | B71: 5634.687857 | C71: 558.7825283 | D71: 1757.12
A72: 69 | B72: 5704.025504 | C72: 558.7825283 | D72: 1782.96
A73: 70 | B73: 5842.006091 | C73: 601.7599207 | D73: 1808.8
A74: 71 | B74: 5911.343738 | C74: 601.7599207 | D74: 1834.64
A75: 72 | B75: 5980.681386 | C75: 601.7599207 | D75: 1860.48
A76: 73 | B76: 6050.009517 | C76: 601.7599207 | D76: 1886.32
A77: 74 | B77: 6119.347164 | C77: 601.7599207 | D77: 1912.16
A78: 75 | B78: 6188.684812 | C78: 644.754536 | D78: 1938
A79: 76 | B79: 6258.022459 | C79: 644.754536 | D79: 1963.84
A80: 77 | B80: 6327.35059 | C80: 644.754536 | D80: 1989.68
A81: 78 | B81: 6396.688238 | C81: 644.754536 | D81: 2015.52
A82: 79 | B82: 6466.025885 | C82: 644.754536 | D82: 2041.36
A83: 80 | B83: 6535.363533 | C83: 687.7319285 | D83: 2067.2
A84: 81 | B84: ='[1]Annexe II'!B84/318 -> 6605.987421 | C84: ='[1]Annexe III'!B84/318 -> 687.7232704 | D84: =A84*25.84 -> 2093.04
A85: 82 | B85: ='[1]Annexe II'!B85/318 -> 6675.336478 | C85: ='[1]Annexe III'!B85/318 -> 687.7232704 | D85: 2118.88
A86: 83 | B86: ='[1]Annexe II'!B86/318 -> 6744.685535 | C86: ='[1]Annexe III'!B86/318 -> 687.7232704 | D86: 2144.72
A87: 84 | B87: ='[1]Annexe II'!B87/318 -> 6814.034591 | C87: ='[1]Annexe III'!B87/318 -> 687.7232704 | D87: 2170.56
A88: 85 | B88: ='[1]Annexe II'!B88/318 -> 6883.383648 | C88: ='[1]Annexe III'!B88/318 -> 730.7012579 | D88: 2196.4
A89: 86 | B89: ='[1]Annexe II'!B89/318 -> 6952.72956 | C89: ='[1]Annexe III'!B89/318 -> 730.7012579 | D89: 2222.24
A90: 87 | B90: ='[1]Annexe II'!B90/318 -> 7022.078616 | C90: ='[1]Annexe III'!B90/318 -> 730.7012579 | D90: 2248.08
A91: 88 | B91: ='[1]Annexe II'!B91/318 -> 7091.427673 | C91: ='[1]Annexe III'!B91/318 -> 730.7012579 | D91: 2273.92
A92: 89 | B92: ='[1]Annexe II'!B92/318 -> 7160.77673 | C92: ='[1]Annexe III'!B92/318 -> 730.7012579 | D92: 2299.76
A93: 90 | B93: ='[1]Annexe II'!B93/318 -> 7230.125786 | C93: ='[1]Annexe III'!B93/318 -> 773.6792453 | D93: 2325.6
A94: 91 | B94: ='[1]Annexe II'!B94/318 -> 7299.471698 | C94: ='[1]Annexe III'!B94/318 -> 773.6792453 | D94: 2351.44
A95: 92 | B95: ='[1]Annexe II'!B95/318 -> 7368.820755 | C95: ='[1]Annexe III'!B95/318 -> 773.6792453 | D95: 2377.28
A96: 93 | B96: ='[1]Annexe II'!B96/318 -> 7438.169811 | C96: ='[1]Annexe III'!B96/318 -> 773.6792453 | D96: 2403.12
A97: 94 | B97: ='[1]Annexe II'!B97/318 -> 7507.518868 | C97: ='[1]Annexe III'!B97/318 -> 773.6792453 | D97: 2428.96
A98: 95 | B98: ='[1]Annexe II'!B98/318 -> 7576.867925 | C98: ='[1]Annexe III'!B98/318 -> 816.6540881 | D98: 2454.8
A99: 96 | B99: ='[1]Annexe II'!B99/318 -> 7646.213836 | C99: ='[1]Annexe III'!B99/318 -> 816.6540881 | D99: 2480.64
A100: 97 | B100: ='[1]Annexe II'!B100/318 -> 7715.562893 | C100: ='[1]Annexe III'!B100/318 -> 816.6540881 | D100: 2506.48
A101: 98 | B101: ='[1]Annexe II'!B101/318 -> 7784.91195 | C101: ='[1]Annexe III'!B101/318 -> 816.6540881 | D101: 2532.32
A102: 99 | B102: ='[1]Annexe II'!B102/318 -> 7854.261006 | C102: ='[1]Annexe III'!B102/318 -> 816.6540881 | D102: 2558.16
A103: 100 | B103: ='[1]Annexe II'!B103/318 -> 7923.610063 | C103: ='[1]Annexe III'!B103/318 -> 859.6320755 | D103: 2584

Sheet Choix déroulant (hidden)
A1: Oui
A2: Non

Sheet Annexe II (hidden)
A1: Annexe II
A2: Montants de référence maximaux – Installation
A3: NOMBRE DE PLACES SUBVENTIONNÉES | B3: MONTANT MAXIMAL ACHAT-CONSTRUCTION
A4: 1 | B4: 667924
A5: 2 | B5: 667924
A6: 3 | B6: 667924
A7: 4 | B7: 667924
A8: 5 | B8: 667924
A9: 6 | B9: 667924
A10: 7 | B10: 667924
A11: 8 | B11: 667924
A12: 9 | B12: 667924
A13: 10 | B13: 667924
A14: 11 | B14: 667924
A15: 12 | B15: 667924
A16: 13 | B16: 667924
A17: 14 | B17: 667924
A18: 15 | B18: 667924
A19: 16 | B19: 667924
A20: 17 | B20: 667924
A21: 18 | B21: 667924
A22: 19 | B22: 667924
A23: 20 | B23: 689973
A24: 21 | B24: 712027
A25: 22 | B25: 734077
A26: 23 | B26: 756131
A27: 24 | B27: 778189
A28: 25 | B28: 800235
A29: 26 | B29: 822290
A30: 27 | B30: 844342
A31: 28 | B31: 866395
A32: 29 | B32: 888453
A33: 30 | B33: 910501
A34: 31 | B34: 932554
A35: 32 | B35: 954606
A36: 33 | B36: 976657
A37: 34 | B37: 998716
A38: 35 | B38: 1020772
A39: 36 | B39: 1042821
A40: 37 | B40: 1064876
A41: 38 | B41: 1086925
A42: 39 | B42: 1108980
A43: 40 | B43: 1152863
A44: 41 | B44: 1174918
A45: 42 | B45: 1196972
A46: 43 | B46: 1219020
A47: 44 | B47: 1241073
A48: 45 | B48: 1263129
A49: 46 | B49: 1285185
A50: 47 | B50: 1307240
A51: 48 | B51: 1329291
A52: 49 | B52: 1351344
A53: 50 | B53: 1373391
A54: 51 | B54: 1395451
A55: 52 | B55: 1417502
A56: 53 | B56: 1439557
A57: 54 | B57: 1461610
A58: 55 | B58: 1505495
A59: 56 | B59: 1527548
A60: 57 | B60: 1549603
A61: 58 | B61: 1571652
A62: 59 | B62: 1593705
A63: 60 | B63: 1615761
A64: 61 | B64: 1637808
A65: 62 | B65: 1659863
A66: 63 | B66: 1681919
A67: 64 | B67: 1703970
A68: 65 | B68: 1726025
A69: 66 | B69: 1748074
A70: 67 | B70: 1770131
A71: 68 | B71: 1792183
A72: 69 | B72: 1814233
A73: 70 | B73: 1858127
A74: 71 | B74: 1880176
A75: 72 | B75: 1902233
A76: 73 | B76: 1924284
A77: 74 | B77: 1946338
A78: 75 | B78: 1968388
A79: 76 | B79: 1990442
A80: 77 | B80: 2012493
A81: 78 | B81: 2034548
A82: 79 | B82: 2056600
A83: 80 | B83: 2078652
A84: 81 | B84: 2100704
A85: 82 | B85: 2122757
A86: 83 | B86: 2144810
A87: 84 | B87: 2166863
A88: 85 | B88: 2188916
A89: 86 | B89: 2210968
A90: 87 | B90: 2233021
A91: 88 | B91: 2255074
A92: 89 | B92: 2277127
A93: 90 | B93: 2299180
A94: 91 | B94: 2321232
A95: 92 | B95: 2343285
A96: 93 | B96: 2365338
A97: 94 | B97: 2387391
A98: 95 | B98: 2409444
A99: 96 | B99: 2431496
A100: 97 | B100: 2453549
A101: 98 | B101: 2475602
A102: 99 | B102: 2497655
A103: 100 | B103: 2519708

Sheet Annexe III (hidden)
A1: Annexe III
A2: Montants de référence maximaux – Salle multifonctionnelle
A3: NOMBRE DE PLACES SUBVENTIONNEES | B3: MONTANT MAXIMAL POUR UNE SALLE MULTIFONCTIONNELLE
A4: 1 | B4: 95362
A5: 2 | B5: 95362
A6: 3 | B6: 95362
A7: 4 | B7: 95362
A8: 5 | B8: 95362
A9: 6 | B9: 95362
A10: 7 | B10: 95362
A11: 8 | B11: 95362
A12: 9 | B12: 95362
A13: 10 | B13: 95362
A14: 11 | B14: 95362
A15: 12 | B15: 95362
A16: 13 | B16: 95362
A17: 14 | B17: 95362
A18: 15 | B18: 95362
A19: 16 | B19: 95362
A20: 17 | B20: 95362
A21: 18 | B21: 95362
A22: 19 | B22: 95362
A23: 20 | B23: 127143
A24: 21 | B24: 127143
A25: 22 | B25: 127143
A26: 23 | B26: 127143
A27: 24 | B27: 127143
A28: 25 | B28: 127143
A29: 26 | B29: 127143
A30: 27 | B30: 127143
A31: 28 | B31: 127143
A32: 29 | B32: 127143
A33: 30 | B33: 127143
A34: 31 | B34: 127143
A35: 32 | B35: 127143
A36: 33 | B36: 127143
A37: 34 | B37: 127143
A38: 35 | B38: 127143
A39: 36 | B39: 127143
A40: 37 | B40: 127143
A41: 38 | B41: 127143
A42: 39 | B42: 127143
A43: 40 | B43: 158935
A44: 41 | B44: 158935
A45: 42 | B45: 158935
A46: 43 | B46: 158935
A47: 44 | B47: 158935
A48: 45 | B48: 158935
A49: 46 | B49: 158935
A50: 47 | B50: 158935
A51: 48 | B51: 158935
A52: 49 | B52: 158935
A53: 50 | B53: 158935
A54: 51 | B54: 158935
A55: 52 | B55: 158935
A56: 53 | B56: 158935
A57: 54 | B57: 158935
A58: 55 | B58: 158935
A59: 56 | B59: 158935
A60: 57 | B60: 158935
A61: 58 | B61: 158935
A62: 59 | B62: 158935
A63: 60 | B63: 164022
A64: 61 | B64: 164022
A65: 62 | B65: 164022
A66: 63 | B66: 164022
A67: 64 | B67: 164022
A68: 65 | B68: 177691
A69: 66 | B69: 177691
A70: 67 | B70: 177691
A71: 68 | B71: 177691
A72: 69 | B72: 177691
A73: 70 | B73: 191358
A74: 71 | B74: 191358
A75: 72 | B75: 191358
A76: 73 | B76: 191358
A77: 74 | B77: 191358
A78: 75 | B78: 205030
A79: 76 | B79: 205030
A80: 77 | B80: 205030
A81: 78 | B81: 205030
A82: 79 | B82: 205030
A83: 80 | B83: 218696
A84: 81 | B84: 218696
A85: 82 | B85: 218696
A86: 83 | B86: 218696
A87: 84 | B87: 218696
A88: 85 | B88: 232363
A89: 86 | B89: 232363
A90: 87 | B90: 232363
A91: 88 | B91: 232363
A92: 89 | B92: 232363
A93: 90 | B93: 246030
A94: 91 | B94: 246030
A95: 92 | B95: 246030
A96: 93 | B96: 246030
A97: 94 | B97: 246030
A98: 95 | B98: 259696
A99: 96 | B99: 259696
A100: 97 | B100: 259696
A101: 98 | B101: 259696
A102: 99 | B102: 259696
A103: 100 | B103: 273363

Sheet Annexe IV (hidden)
A1: Annexe IV
A2: Indices régionaux de modulation
A3: Région administrative | B3: INDICE
A4: Abitibi-Témiscamingue | B4: 1.15
A5: Bas-Saint-Laurent | B5: 1.05
A6: Capitale-Nationale | B6: 1
A7: Centre-du-Québec | B7: 1
A8: Chaudière-Appalaches | B8: 1
A9: Côte-Nord - Est de Pointe-Parent et Schefferville | B9: 2
A10: Côte-Nord - Rivière Moisie à Pointe-Parent et Fermont | B10: 1.6
A11: Côte-Nord - Rivière Saguenay à rivière Moisie | B11: 1.25
A12: Estrie | B12: 1
A13: Gaspésie | B13: 1.1
A14: Gaspésie - Îles-de-la-Madeleine | B14: 1.6
A15: Lanaudière | B15: 1
A16: Laurentides - MRC d’Antoine-Labelle | B16: 1.12
A17: Laurentides - Sauf la MRC d’Antoine-Labelle | B17: 1
A18: Laval | B18: 1
A19: Mauricie - Région de La Tuque | B19: 1.05
A20: Mauricie - Sauf la région de La Tuque | B20: 1
A21: Montérégie | B21: 1
A22: Montréal | B22: 1
A23: Nord-du-Québec - Région de Chibougamau | B23: 1.25
A24: Nord-du-Québec - Région du Nunavik | B24: 4
A25: Nord-du-Québec - Sauf les régions de Chibougamau et du Nunavik | B25: 1.6
A26: Outaouais | B26: 1.12
A27: Saguenay–Lac-Saint-Jean | B27: 1.05
